fUSD/lending_fUSD_20241022
["ID","MTS","AMOUNT","RATE_DAILY","PERIOD"]
[340669564,1729631438756,-9321.70015773,0.00035,2]
[340669567,1729631438766,-400.96399432,0.00035,2]
[340669569,1729631438778,-46764.21017645,0.00035,2]
[340669571,1729631438787,-417.0,0.00035,20]
[340669573,1729631438796,-1538.0,0.00035,2]
[340669575,1729631438805,-1538.0,0.00035,2]
[340669577,1729631438814,-1538.0,0.00035,2]
[340669579,1729631438824,-1538.0,0.00035,2]
[340669581,1729631438833,-1538.0,0.00035,2]
[340669583,1729631438842,-1538.0,0.00035,2]
[340669584,1729631438851,-1538.0,0.00035,2]
[340669585,1729631438860,-1538.0,0.00035,2]
[340669586,1729631438869,-1538.0,0.00035,2]
[340669587,1729631438878,-1538.0,0.00035,2]
[340669588,1729631438888,-1538.0,0.00035,2]
[340669589,1729631438897,-1544.0,0.00035,2]
[340669590,1729631438907,-1424.0,0.00035,2]
[340669591,1729631438917,-1424.0,0.00035,2]
[340669592,1729631438927,-1424.0,0.00035,2]
[340669593,1729631438936,-1424.0,0.00035,2]
[340669594,1729631438946,-1424.0,0.00035,2]
[340669595,1729631438956,-1424.0,0.00035,2]
[340669596,1729631438966,-1424.0,0.00035,2]
[340669597,1729631438976,-1424.0,0.00035,2]
[340669598,1729631438986,-1424.0,0.00035,2]
[340669599,1729631438995,-1424.0,0.00035,2]
[340669600,1729631439005,-1424.0,0.00035,2]
[340669601,1729631439014,-1425.04550621,0.00035,2]
[340669602,1729631439025,-200.74875246,0.00035,2]
[340669603,1729631439034,-64802.3262256,0.00035016,2]
[340669604,1729631439043,-1086.944274,0.00035016,2]
[340669605,1729631439053,-12349.0775203,0.00035016,2]
[340669606,1729631439064,-1921.8277784,0.00035092,2]
[340669607,1729631439075,-2500.0,0.00035139,120]
[340669608,1729631439085,-151.0,0.0003526,120]
[340669609,1729631439095,-257.87,0.00035318,2]
[340669610,1729631439104,-153.07,0.00035616,2]
[340669611,1729631439113,-2244.0,0.00035872,2]
[340669612,1729631439122,-180.0,0.00036116,120]
[340669613,1729631439132,-151.0,0.00036575,120]
[340669614,1729631439141,-150.62,0.00036637,2]
[340669615,1729631439150,-200.0,0.00036737,2]
[340669616,1729631439159,-164.03653384,0.00036863,5]
[340669617,1729631439170,-180.38713943,0.000372,103]
[340669618,1729631439179,-257.87,0.00037582,2]
[340669619,1729631439189,-151.0,0.0003789,120]
[340669620,1729631439202,-150.62,0.00038325,2]
[340669621,1729631439212,-14084.33677535,0.00038789,15]
[340669622,1729631439222,-800.0,0.00039059,2]
[340669623,1729631439232,-151.0,0.00039205,120]
[340669624,1729631439242,-160.2,0.00039671,2]
[340669625,1729631439254,-218.89,0.000397,31]
[340669626,1729631439267,-218.89,0.000397,31]
[340669627,1729631439276,-218.89,0.000397,31]
[340669628,1729631439287,-218.89,0.000397,31]
[340669629,1729631439297,-218.89,0.000397,31]
[340669630,1729631439307,-218.89,0.000397,31]
[340669631,1729631439317,-218.89,0.000397,31]
[340669632,1729631439327,-218.89,0.000397,31]
[340669633,1729631439337,-218.89,0.000397,31]
[340669634,1729631439347,-218.89,0.000397,31]
[340669635,1729631439356,-218.89,0.000397,31]
[340669636,1729631439366,-218.89,0.000397,31]
[340669637,1729631439375,-218.89,0.000397,31]
[340669638,1729631439385,-218.89,0.000397,31]
[340669639,1729631439394,-218.89,0.000397,31]
[340669640,1729631439403,-218.89,0.000397,31]
[340669641,1729631439412,-218.89,0.000397,31]
[340669642,1729631439422,-218.89,0.000397,31]
[340669643,1729631439431,-218.89,0.000397,31]
[340669644,1729631439440,-218.89,0.000397,31]
[340669645,1729631439449,-218.89,0.000397,31]
[340669646,1729631439458,-218.89,0.000397,31]
[340669647,1729631439467,-218.89,0.000397,31]
[340669648,1729631439476,-218.89,0.000397,31]
[340669649,1729631439486,-257.87,0.00039845,2]
[340669650,1729631439495,-204.19527037,0.000399,2]
[340669651,1729631439504,-158.84,0.00039997,120]
[340669652,1729631439513,-151.0,0.0004,120]
[340669653,1729631439523,-1000.0,0.0004,30]
[340669654,1729631439532,-1000.0,0.0004,30]
[340669655,1729631439541,-21981.25286475,0.0004,14]
[340669656,1729631439550,-14161.63239714,0.0004,120]
[340669657,1729631439559,-200.0,0.0004,120]
[340669658,1729631439568,-9911.80401598,0.00040008,8]
[340669659,1729631439580,-5342.69719282,0.00040008,8]
[340669660,1729631439589,-150.62,0.00040013,2]
[340669661,1729631439599,-2581.00000026,0.00040071,2]
[340669662,1729631439608,-5340.59357773,0.00040071,120]
[340669663,1729631439620,-9659.40642227,0.00040071,120]
[340669664,1729631439629,-288.09339575,0.00040071,120]
[340669665,1729631439639,-10000.0,0.00040071,4]
[340669666,1729631439649,-262.821423,0.00040071,120]
[340669667,1729631439658,-152.30230482,0.00040166,24]
[340669668,1729631439667,-151.0,0.00040521,120]
[340669669,1729631439677,-200.0,0.00040819,2]
[340669670,1729631439686,-168.1,0.00040952,2]
[340669671,1729631439695,-200.0,0.00041,120]
[340669672,1729631439704,-11517.0,0.000413,5]
[340669673,1729631439714,-150.62,0.00041702,2]
[340669674,1729631439723,-151.0,0.00041836,120]
[340669675,1729631439732,-1800.0,0.00042,2]
[340669676,1729631439741,-200.0,0.00042,120]
[340669677,1729631439750,-257.87,0.00042109,2]
[340669678,1729631439759,-150.42,0.00042374,2]
[340669679,1729631439768,-150.102305,0.00042498,120]
[340669680,1729631439777,-673.31953921,0.0004259,14]
[340669681,1729631439786,-15254.5012088,0.0004268,9]
[340669682,1729631439796,-4701.0,0.000427,117]
[340669683,1729631439806,-204.19527036,0.00042796,28]
[340669684,1729631439815,-662.17957383,0.0004299,120]
[340669685,1729631439825,-1069.86160945,0.00043,30]
[340669686,1729631439834,-200.0,0.00043,120]
[340669687,1729631439844,-151.0,0.0004311,14]
[340669688,1729631439854,-151.0,0.0004311,14]
[340669689,1729631439864,-152.777725,0.0004311,14]
[340669690,1729631439873,-152.161336,0.0004311,14]
[340669691,1729631439882,-151.0,0.0004311,14]
[340669692,1729631439896,-151.0,0.0004311,14]
[340669693,1729631439905,-156.53548,0.0004311,14]
[340669694,1729631439914,-151.0,0.0004311,14]
[340669695,1729631439923,-151.0,0.0004311,14]
[340669696,1729631439932,-151.0,0.0004311,14]
[340669697,1729631439941,-210.932246,0.0004313,14]
[340669698,1729631439950,-210.932246,0.0004313,14]
[340669699,1729631439959,-151.0,0.00043151,120]
[340669700,1729631439968,-756.17,0.00043242,2]
[340669701,1729631439977,-370.64,0.00043242,2]
[340669703,1729631439986,-150.62,0.0004339,2]
[340669704,1729631439995,-800.0,0.00043399,2]
[340669705,1729631440004,-151.0,0.0004347,14]
[340669706,1729631440013,-151.0,0.0004347,14]
[340669707,1729631440022,-151.0,0.0004347,14]
[340669708,1729631440031,-151.0,0.0004347,14]
[340669709,1729631440040,-15254.5012088,0.00043479,9]
[340669710,1729631440049,-151.0,0.0004348,14]
[340669711,1729631440058,-151.0,0.0004348,14]
[340669712,1729631440067,-151.0,0.0004348,14]
[340669713,1729631440076,-151.0,0.0004348,14]
[340669714,1729631440085,-151.0,0.0004348,14]
[340669715,1729631440094,-151.0,0.0004348,14]
[340669716,1729631440103,-151.0,0.0004348,14]
[340669717,1729631440112,-151.0,0.0004348,14]
[340669718,1729631440121,-151.0,0.0004348,14]
[340669719,1729631440130,-151.0,0.0004348,14]
[340669720,1729631440143,-152.934687,0.0004349,14]
[340669721,1729631440152,-151.0,0.0004349,14]
[340669722,1729631440161,-151.0,0.0004349,14]
[340669723,1729631440171,-151.0,0.0004349,14]
[340669724,1729631440180,-151.0,0.0004349,14]
[340669725,1729631440189,-151.0,0.0004349,14]
[340669726,1729631440198,-151.0,0.0004349,14]
[340669727,1729631440207,-151.0,0.0004349,14]
[340669728,1729631440215,-270.460867,0.0004349,14]
[340669729,1729631440224,-151.0,0.0004349,14]
[340669730,1729631440234,-151.0,0.0004349,14]
[340669731,1729631440243,-159.88798,0.0004349,14]
[340669732,1729631440254,-159.88798,0.0004349,14]
[340669733,1729631440263,-224.179169,0.0004349,14]
[340669734,1729631440272,-224.179169,0.0004349,14]
[340669735,1729631440282,-202.461524,0.0004349,14]
[340669736,1729631440290,-202.461524,0.0004349,14]
[340669737,1729631440301,-30509.0024175,0.0004349,9]
[340669738,1729631440310,-151.0,0.0004349,14]
[340669739,1729631440319,-151.0,0.0004349,14]
[340669741,1729631440329,-150.102305,0.00043498,120]
[340669742,1729631440338,-2116.63099134,0.00043499,120]
[340669743,1729631440347,-363.0,0.000435,7]
[340669744,1729631440356,-33914.71114125,0.000435,120]
[340669745,1729631440365,-151.0,0.000435,14]
[340669746,1729631440374,-210.932246,0.000435,14]
[340669747,1729631440383,-210.932246,0.000435,14]
[340669748,1729631440393,-151.0,0.000435,14]
[340669749,1729631440402,-151.0,0.000435,14]
[340669750,1729631440411,-151.0,0.000435,14]
[340669751,1729631440420,-151.0,0.000435,14]
[340669752,1729631440561,-151.0,0.000435,14]
[340669753,1729631440570,-307.161533,0.000435,14]
[340669754,1729631440579,-307.161533,0.000435,14]
[340669755,1729631440589,-504.260752,0.000435,14]
[340669756,1729631440598,-504.260752,0.000435,14]
[340669757,1729631440607,-442.347369,0.000435,14]
[340669758,1729631440616,-442.347369,0.000435,14]
[340669759,1729631440625,-151.0,0.000435,14]
[340669760,1729631440634,-151.0,0.000435,14]
[340669761,1729631440643,-258.276706,0.000435,14]
[340669762,1729631440653,-258.276706,0.000435,14]
[340669763,1729631440662,-370.355628,0.000435,14]
[340669764,1729631440671,-370.355628,0.000435,14]
[340669765,1729631440680,-609.650926,0.000435,14]
[340669766,1729631440689,-609.650926,0.000435,14]
[340669767,1729631440699,-246.17677,0.000435,14]
[340669768,1729631440708,-246.17677,0.000435,14]
[340669769,1729631440717,-486.69816,0.000435,14]
[340669770,1729631440726,-486.69816,0.000435,14]
[340669771,1729631440735,-151.0,0.0004361,14]
[340669772,1729631440745,-151.0,0.0004361,14]
[340669773,1729631440754,-151.0,0.0004361,14]
[340669774,1729631440763,-151.0,0.0004361,14]
[340669775,1729631440772,-151.0,0.0004361,14]
[340669776,1729631440782,-151.0,0.0004361,14]
[340669777,1729631440791,-151.0,0.0004361,14]
[340669778,1729631440800,-306.576903,0.0004361,14]
[340669779,1729631440809,-151.0,0.0004361,14]
[340669780,1729631440818,-151.0,0.0004361,14]
[340669781,1729631440827,-306.576903,0.0004361,14]
[340669782,1729631440836,-1413.49248,0.0004361,14]
[340669783,1729631440845,-1413.49248,0.0004361,14]
[340669784,1729631440856,-151.0,0.0004361,7]
[340669785,1729631440865,-151.0,0.0004361,14]
[340669786,1729631440876,-151.0,0.0004361,14]
[340669787,1729631440886,-151.0,0.0004361,14]
[340669788,1729631440895,-151.0,0.0004361,14]
[340669789,1729631440907,-151.0,0.0004361,14]
[340669790,1729631440916,-370.022236,0.0004361,14]
[340669791,1729631440925,-370.022236,0.0004361,14]
[340669792,1729631440935,-150.0,0.00043927,2]
[340669793,1729631440946,-502.599756,0.00044,57]
[340669794,1729631440957,-200.0,0.00044,120]
[340669795,1729631440967,-257.87,0.00044373,2]
[340669796,1729631440978,-1622.93559456,0.00044444,120]
[340669797,1729631440989,-151.0,0.00044466,120]
[340669798,1729631440999,-150.102305,0.00044498,120]
[340669799,1729631441008,-200.0,0.00044901,2]
[340669800,1729631441017,-150.0,0.00045,85]
[340669801,1729631441026,-150.0,0.00045,60]
[340669802,1729631441035,-150.62,0.00045078,2]
[340669803,1729631441044,-152.30230482,0.00045482,32]
[340669804,1729631441055,-150.102305,0.00045498,120]
[340669805,1729631441065,-151.0,0.00045498,14]
[340669806,1729631441074,-151.0,0.00045498,14]
[340669807,1729631441084,-820.38,0.00045582,2]
[340669808,1729631441093,-359.59,0.00045582,2]
[340669809,1729631441102,-359.59,0.00045582,2]
[340669810,1729631441111,-359.59,0.00045582,2]
[340669811,1729631441121,-359.59,0.00045582,2]
[340669812,1729631441132,-359.59,0.00045582,2]
[340669813,1729631441143,-229.42,0.00045582,2]
[340669814,1729631441154,-151.0,0.00045688,14]
[340669815,1729631441163,-151.0,0.00045688,14]
[340669816,1729631441172,-152.424909,0.00045688,14]
[340669817,1729631441182,-15254.5012088,0.00045689,9]
[340669818,1729631441192,-204.19527036,0.00045692,28]
[340669819,1729631441204,-151.0,0.00045699,14]
[340669820,1729631441215,-209.350985,0.00045699,14]
[340669821,1729631441224,-209.350985,0.00045699,14]
[340669822,1729631441233,-151.0,0.00045699,14]
[340669823,1729631441242,-153.46616,0.00045699,14]
[340669824,1729631441253,-609.98,0.00045709,120]
[340669825,1729631441262,-151.0,0.00045781,120]
[340669826,1729631441270,-151.0,0.0004583,14]
[340669827,1729631441279,-151.0,0.0004583,14]
[340669828,1729631441288,-151.0,0.00045831,14]
[340669829,1729631441297,-151.0,0.00045831,14]
[340669830,1729631441307,-151.0,0.00045831,14]
[340669831,1729631441316,-151.0,0.00045831,14]
[340669832,1729631441325,-151.0,0.00045831,14]
[340669833,1729631441334,-151.0,0.00045831,14]
[340669834,1729631441344,-151.0,0.00045831,14]
[340669835,1729631441352,-151.0,0.00045831,14]
[340669836,1729631441361,-218.610263,0.0004589,14]
[340669837,1729631441370,-219.326686,0.0004589,14]
[340669838,1729631441379,-151.0,0.0004589,14]
[340669839,1729631441388,-151.0,0.0004589,14]
[340669840,1729631441398,-210.932246,0.000459,14]
[340669841,1729631441406,-210.932246,0.000459,14]
[340669842,1729631441415,-151.0,0.000459,14]
[340669843,1729631441424,-151.0,0.000459,14]
[340669844,1729631441433,-151.0,0.000459,14]
[340669845,1729631441442,-151.0,0.000459,14]
[340669846,1729631441451,-151.0,0.000459,14]
[340669847,1729631441460,-154.637134,0.000459,14]
[340669848,1729631441470,-218.89,0.000459,39]
[340669849,1729631441478,-218.89,0.000459,39]
[340669850,1729631441487,-218.89,0.000459,39]
[340669851,1729631441496,-218.89,0.000459,39]
[340669852,1729631441507,-218.89,0.000459,39]
[340669853,1729631441516,-218.89,0.000459,39]
[340669854,1729631441525,-218.89,0.000459,39]
[340669855,1729631441534,-218.89,0.000459,39]
[340669856,1729631441543,-218.89,0.000459,39]
[340669857,1729631441552,-218.89,0.000459,39]
[340669858,1729631441561,-218.89,0.000459,39]
[340669859,1729631441570,-218.89,0.000459,39]
[340669860,1729631441579,-218.89,0.000459,39]
[340669861,1729631441589,-218.89,0.000459,39]
[340669862,1729631441598,-218.89,0.000459,39]
[340669863,1729631441609,-218.89,0.000459,39]
[340669864,1729631441618,-218.89,0.000459,39]
[340669865,1729631441628,-218.89,0.000459,39]
[340669866,1729631441637,-218.89,0.000459,39]
[340669867,1729631441647,-218.89,0.000459,39]
[340669868,1729631441656,-218.89,0.000459,39]
[340669869,1729631441665,-218.89,0.000459,39]
[340669870,1729631441675,-218.89,0.000459,39]
[340669871,1729631441684,-218.89,0.000459,39]
[340669872,1729631441693,-151.0,0.000459,14]
[340669873,1729631441702,-159.88798,0.000459,14]
[340669874,1729631441711,-159.88798,0.000459,14]
[340669875,1729631441721,-224.179169,0.000459,14]
[340669876,1729631441730,-224.179169,0.000459,14]
[340669877,1729631441740,-202.461524,0.000459,14]
[340669878,1729631441748,-202.461524,0.000459,14]
[340669879,1729631441758,-151.0,0.000459,14]
[340669880,1729631441767,-151.0,0.000459,14]
[340669881,1729631441776,-151.0,0.00046002,14]
[340669882,1729631441786,-151.0,0.00046002,14]
[340669883,1729631441795,-158.84,0.00046134,120]
[340669884,1729631441805,-45763.5036263,0.00046388,9]
[340669885,1729631441815,-151.0,0.00046398,14]
[340669886,1729631441825,-370.022236,0.00046398,14]
[340669887,1729631441835,-370.022236,0.00046398,14]
[340669888,1729631441847,-246.17677,0.00046398,14]
[340669889,1729631441857,-246.17677,0.00046398,14]
[340669890,1729631441867,-486.69816,0.00046398,14]
[340669891,1729631441877,-486.69816,0.00046398,14]
[340669892,1729631441888,-151.0,0.00046398,14]
[340669893,1729631441897,-151.0,0.00046398,14]
[340669894,1729631441906,-88888.0,0.00046398,120]
[340669895,1729631441915,-15254.5012088,0.00046446,9]
[340669896,1729631441925,-7500.0,0.00046456,120]
[340669897,1729631441935,-150.102305,0.00046498,120]
[340669898,1729631441945,-151.0,0.00046527,14]
[340669899,1729631441954,-209.350985,0.00046527,14]
[340669900,1729631441965,-209.350985,0.00046527,14]
[340669901,1729631441975,-151.0,0.00046527,14]
[340669902,1729631441985,-151.0,0.00046536,14]
[340669903,1729631441996,-307.161533,0.00046536,14]
[340669904,1729631442006,-307.161533,0.00046536,14]
[340669905,1729631442017,-504.260752,0.00046536,14]
[340669906,1729631442027,-504.260752,0.00046536,14]
[340669907,1729631442040,-442.347369,0.00046536,14]
[340669908,1729631442051,-442.347369,0.00046536,14]
[340669909,1729631442061,-151.0,0.00046536,14]
[340669910,1729631442071,-151.0,0.00046556,14]
[340669911,1729631442082,-151.0,0.00046556,14]
[340669912,1729631442092,-306.576903,0.00046556,14]
[340669913,1729631442101,-151.745914,0.00046556,14]
[340669914,1729631442112,-151.0,0.00046556,14]
[340669915,1729631442122,-306.576903,0.00046556,14]
[340669916,1729631442132,-1413.49248,0.00046556,14]
[340669917,1729631442142,-1413.49248,0.00046556,14]
[340669918,1729631442151,-151.0,0.00046556,7]
[340669919,1729631442161,-257.87,0.00046637,2]
[340669920,1729631442172,-150.62,0.00046766,120]
[340669921,1729631442183,-151.0,0.00047096,120]
[340669922,1729631442195,-1549.62,0.00047183,2]
[340669923,1729631442206,-168.1,0.00047354,2]
[340669924,1729631442216,-1087.9705,0.00047368,2]
[340669925,1729631442227,-15254.5012088,0.00047449,10]
[340669926,1729631442237,-151.0,0.00047468,14]
[340669927,1729631442248,-258.276706,0.00047468,14]
[340669928,1729631442263,-258.276706,0.00047468,14]
[340669929,1729631442272,-370.355628,0.00047468,14]
[340669930,1729631442282,-370.355628,0.00047468,14]
[340669931,1729631442293,-609.650926,0.00047468,14]
[340669932,1729631442306,-609.650926,0.00047468,14]
[340669933,1729631442318,-151.0,0.00047478,14]
[340669934,1729631442327,-151.0,0.00047478,14]
[340669935,1729631442338,-151.0,0.00047478,14]
[340669936,1729631442348,-151.0,0.00047478,14]
[340669937,1729631442360,-150.102305,0.00047498,120]
[340669938,1729631442370,-272.43816709,0.000475,60]
[340669939,1729631442379,-800.0,0.00047739,2]
[340669940,1729631442389,-150.0,0.00048,120]
[340669941,1729631442397,-150.0,0.00048,120]
[340669942,1729631442407,-1300.0,0.00048,120]
[340669943,1729631442416,-151.0,0.00048,14]
[340669944,1729631442427,-151.0,0.00048,14]
[340669945,1729631442437,-151.63,0.00048,120]
[340669946,1729631442448,-151.63,0.00048,120]
[340669947,1729631442458,-151.0,0.00048411,120]
[340669948,1729631442467,-150.62,0.00048454,120]
[340669949,1729631442478,-150.102305,0.00048498,120]
[340669950,1729631442488,-204.19527036,0.00048588,28]
[340669951,1729631442497,-360.36,0.00048767,2]
[340669952,1729631442507,-257.87,0.00048901,2]
[340669953,1729631442516,-200.0,0.00048983,2]
[340669954,1729631442525,-290.72836423,0.00049398,27]
[340669955,1729631442534,-15254.5012088,0.00049488,10]
[340669956,1729631442544,-150.102305,0.00049498,120]
[340669957,1729631442553,-151.63,0.00049715,120]
[340669958,1729631442562,-151.0,0.00049725,120]
[340669959,1729631442573,-151.0,0.00049725,120]
[340669960,1729631442583,-30509.0024175,0.00049726,10]
[340669961,1729631442717,-24353.2051352,0.00049726,10]
[340669962,1729631442727,-151.63,0.00049726,120]
[340669963,1729631442736,-151.0,0.00049726,120]
[340669964,1729631442746,-45763.5036263,0.00049736,10]
[340669965,1729631442755,-29023.24242358,0.00049736,10]
[340669966,1729631442769,-12608.96321469,0.00049736,10]
[340669969,1729631442844,-6884.76413115,0.00049736,10]
[340669970,1729631442855,-189.44050108,0.00049736,10]
[340669971,1729631442865,-151.0,0.00049736,120]
[340669972,1729631442874,-151.594848,0.00049736,120]
[340669973,1729631442883,-159.88798,0.00049736,120]
[340669974,1729631442894,-159.88798,0.00049736,120]
[340669975,1729631442903,-224.179169,0.00049736,120]
[340669976,1729631442912,-224.179169,0.00049736,120]
[340669977,1729631442922,-202.461524,0.00049736,120]
[340669978,1729631442932,-202.461524,0.00049736,120]
[340669979,1729631442941,-370.022236,0.00049736,120]
[340669980,1729631442950,-370.022236,0.00049736,120]
[340669981,1729631442960,-151.0,0.00049736,120]
[340669982,1729631442970,-151.0,0.00049736,120]
[340669984,1729631442980,-246.17677,0.00049736,120]
[340669986,1729631442990,-246.17677,0.00049736,120]
[340669987,1729631442999,-486.69816,0.00049736,120]
[340669989,1729631443008,-486.69816,0.00049736,120]
[340669990,1729631443017,-151.63,0.00049736,120]
[340669992,1729631443027,-9188.48297292,0.00049746,10]
[340669994,1729631443038,-769.1569128,0.00049746,10]
[340669996,1729631443607,-819.03494842,0.00049746,10]
[340669997,1729631443730,-4477.82637466,0.00049746,10]
[340669998,1729631443860,-151.0,0.00049746,120]
[340669999,1729631443963,-151.0,0.00049746,120]
[340670000,1729631443991,-151.0,0.00049746,120]
[340670001,1729631444001,-151.0,0.00049746,120]
[340670002,1729631444013,-307.161533,0.00049746,120]
[340670003,1729631444022,-307.161533,0.00049746,120]
[340670004,1729631444033,-151.0,0.00049746,120]
[340670005,1729631444043,-504.260752,0.00049746,120]
[340670006,1729631444053,-504.260752,0.00049746,120]
[340670007,1729631444062,-442.347369,0.00049746,120]
[340670008,1729631444071,-442.347369,0.00049746,120]
[340670009,1729631444081,-151.0,0.00049746,120]
[340670010,1729631444090,-158.51714257,0.00049746,26]
[340670011,1729631444100,-151.0,0.00049746,120]
[340670012,1729631444109,-258.276706,0.00049746,120]
[340670013,1729631444119,-258.276706,0.00049746,120]
[340670014,1729631444128,-370.022236,0.00049746,120]
[340670015,1729631444137,-370.022236,0.00049746,120]
[340670016,1729631444147,-370.355628,0.00049746,120]
[340670017,1729631444156,-370.355628,0.00049746,120]
[340670018,1729631444166,-151.0,0.00049746,120]
[340670019,1729631444176,-609.650926,0.00049746,120]
[340670020,1729631444186,-609.650926,0.00049746,120]
[340670021,1729631444195,-246.17677,0.00049746,120]
[340670022,1729631444205,-246.17677,0.00049746,120]
[340670023,1729631444215,-486.69816,0.00049746,120]
[340670025,1729631444224,-486.69816,0.00049746,120]
[340670026,1729631444234,-209.350985,0.00049746,120]
[340670027,1729631444243,-209.350985,0.00049746,120]
[340670028,1729631444255,-151.0,0.00049746,120]
[340670029,1729631444264,-151.0,0.00049746,120]
[340670030,1729631444274,-151.0,0.00049746,120]
[340670032,1729631444283,-151.0,0.00049756,120]
[340670034,1729631444292,-229.241732,0.00049756,120]
[340670036,1729631444301,-151.0,0.00049756,120]
[340670038,1729631444311,-151.0,0.00049756,120]
[340670040,1729631444320,-151.0,0.00049756,120]
[340670042,1729631444332,-151.0,0.00049756,120]
[340670044,1729631444341,-151.0,0.00049756,120]
[340670046,1729631444350,-151.0,0.00049756,120]
[340670048,1729631444359,-160.214353,0.00049756,120]
[340670050,1729631444368,-307.161533,0.00049756,120]
[340670052,1729631444378,-307.161533,0.00049756,120]
[340670054,1729631444387,-182.17115135,0.00049756,37]
[340670056,1729631444396,-504.260752,0.00049756,120]
[340670058,1729631444405,-151.0,0.00049756,120]
[340670060,1729631444414,-504.260752,0.00049756,120]
[340670061,1729631444424,-442.347369,0.00049756,120]
[340670063,1729631444434,-442.347369,0.00049756,120]
[340670065,1729631444444,-151.0,0.00049756,120]
[340670067,1729631444454,-159.88798,0.00049756,120]
[340670069,1729631444464,-159.88798,0.00049756,120]
[340670071,1729631444473,-224.179169,0.00049756,120]
[340670073,1729631444483,-151.0,0.00049756,120]
[340670075,1729631444493,-224.179169,0.00049756,120]
[340670077,1729631444503,-202.461524,0.00049756,120]
[340670079,1729631444512,-202.461524,0.00049756,120]
[340670081,1729631444523,-258.276706,0.00049756,120]
[340670083,1729631444532,-258.276706,0.00049756,120]
[340670085,1729631444542,-370.355628,0.00049756,120]
[340670087,1729631444552,-370.355628,0.00049756,120]
[340670089,1729631444562,-151.0,0.00049756,120]
[340670091,1729631444572,-609.650926,0.00049756,120]
[340670093,1729631444582,-151.0,0.00049756,120]
[340670095,1729631444591,-609.650926,0.00049756,120]
[340670098,1729631444602,-12176.6025676,0.00049775,10]
[340670100,1729631444611,-12176.6025676,0.00049786,10]
[340670102,1729631444621,-15254.5012088,0.00049806,10]
[340670104,1729631444631,-12176.6025676,0.00049816,10]
[340670106,1729631444641,-151.0,0.00049816,120]
[340670108,1729631444650,-151.0,0.00049816,7]
[340670110,1729631444660,-151.0,0.00049816,120]
[340670112,1729631444669,-151.0,0.00049816,120]
[340670114,1729631444680,-254.853808,0.00049816,120]
[340670116,1729631444691,-151.0,0.00049816,120]
[340670118,1729631444701,-203.46689655,0.00049819,120]
[340670120,1729631444711,-151.0,0.00049825,120]
[340670122,1729631444721,-151.0,0.00049825,120]
[340670124,1729631444731,-15254.5012088,0.00049826,10]
[340670125,1729631444740,-205.206734,0.00049826,120]
[340670127,1729631444749,-209.350985,0.00049826,120]
[340670129,1729631444758,-209.350985,0.00049826,120]
[340670131,1729631444768,-151.0,0.00049826,120]
[340670133,1729631444778,-12176.6025676,0.00049826,10]
[340670135,1729631444787,-151.0,0.00049836,120]
[340670137,1729631444796,-151.0,0.00049836,120]